[Event "Charlotte Summer IM D 2022"]
[Site "Charlotte"]
[Date "2022.07.28"]
[Round "8.3"]
[White "Martin Del Campo Cardenas, Roberto Abel"]
[Black "Oberoi, Shelev"]
[Result "1/2-1/2"]
[ECO "B83"]
[WhiteElo "2245"]
[BlackElo "2259"]
[Annotator "TA"]
[PlyCount "88"]
[EventDate "2022.07.24"]
[EventType "tourn"]
[EventCountry "USA"]
[SourceTitle "playchess.com"]
[Source "ChessBase"]
[SourceQuality "1"]
[TimeControl "5400+30"]

{[%evp 16,88,17,3,0,0,12,-25,-6,-10,0,-25,-42,-28,0,0,0,0,0,0,9,14,16,0,0,0,3,0,0,-35,-33,-32,-33,-33,-33,-47,-29,-29,-29,-29,-29,-29,-29,-32,-33,-34,-34,-34,-16,-16,-16,-16,-16,-16,-16,-16,-16,-25,-25,-25,-25,-31,0,0,0,0,0,0,0,0,0,-1,-1,-18,-18]} 1. e4 {[%emt 0:01:58]} c5 {[%emt 0:01:50]} 2. Nf3 {[%emt 0:00:07]} e6 {[%emt 0:00:07]} 3. d4 {[%emt 0:00:09]} cxd4 {[%emt 0:00:08]} 4. Nxd4 {[%emt 0:00:03]} Nc6 {[%emt 1:30:25]} 5. Nc3 Nf6 {[%emt 0:00:00]} 6. a3 {[%emt 0:00:33]} d6 {[%emt 0:00:00]} 7. Be3 {[%emt 0:00:48]} Be7 {[%emt 0:00:00]} 8. Be2 {[%emt 0:00:33]} O-O {[%emt 0:00:00]} 9. O-O {[%emt 0:00:07]} e5 {[%emt 0:00:00] B83: Sicilian Scheveningen: 6 Be2, lines without ...a6.} 10. Nb3 {[%emt 0:04:32]} Be6 {[%emt 0:03:00]} 11. f4 {[%emt 0:01:47]} exf4 {[%emt 0:00:30] Black has an edge.} (11... d5 {looks sharper.} 12. f5 d4 13. fxe6 fxe6 14. Bc4 Kh8) 12. Rxf4 {[%emt 0:02:38]} d5 {[%emt 0:00:00]} 13. exd5 {[%emt 0:01:53]} (13. Rxf6 $5 Bxf6 14. exd5 Bxc3 15. dxc6 Bxb3 16. cxb7 Qxd1+ 17. Bxd1 $11) 13... Nxd5 {[%emt 0:00:00]} 14. Nxd5 {[%emt 0:00:05] [#]} Qxd5 $146 {[%emt 0:00:00]} ({Predecessor:} 14... Bxd5 15. c4 Be6 16. Qxd8 Rfxd8 17. Rff1 Ne5 18. Rac1 Rac8 19. Bxa7 Nxc4 20. Nd4 Bd5 21. Rf5 Nd6 22. Rff1 Nc4 23. Rf5 Nd6 24. Rff1 Nc4 {½-½ (24) Lallemand,R (2301)-Ptacnikova,L (2224) Bled 2002}) 15. Qxd5 {[%emt 0:00:44]} Bxd5 {[%emt 0:00:00]} 16. c4 {[%emt 0:03:28]} Be6 {[%emt 0:00:00]} 17. Nc5 {[%emt 0:00:14]} Bxc5 {[%emt 0:00:00]} 18. Bxc5 {[%emt 0:00:10]} Rfd8 {[%emt 0:00:00]} 19. Rd1 {[%emt 0:10:42] Inhibits Rd2.} Rxd1+ {[%emt 0:00:00]} 20. Bxd1 {[%emt 0:00:05]} Rd8 {[%emt 0:00:00]} 21. Ba4 {[%emt 0:03:09]} Ne5 {[%emt 0:05:00]} 22. Rd4 {[%emt 0:03:41]} ({Not} 22. Bxa7 $2 Ra8 23. Bc5 Rxa4 $19) (22. b3 $5 {[%cal Rf4d4]}) 22... Rxd4 {[%emt 0:00:00]} 23. Bxd4 {[%emt 0:01:06]} Nxc4 {[%emt 0:00:00]} 24. Bxa7 {[%emt 0:00:05]} Nxb2 $15 {[%emt 0:01:30][%mdl 4096] Endgame KBB-KBN} 25. Bb5 {[%emt 0:00:09]} f5 {[%emt 0:00:00]} 26. Bd4 {[%emt 0:00:22]} Nc4 {[%emt 0:00:00]} 27. Bxc4 {[%emt 0:00:10]} Bxc4 $11 {[%emt 0:00:00] KB-KB} 28. h4 {[%emt 0:00:12]} Kf7 {[%emt 0:00:00]} 29. Kf2 {[%emt 0:00:05]} Kg6 {[%emt 0:00:46]} 30. Ke3 {[%emt 0:00:08]} Bd5 {[%emt 0:02:14]} 31. g3 {[%emt 0:00:09]} Kf7 {[%emt 0:00:00]} 32. Kf4 Be6 {[%emt 0:01:00]} 33. Bb2 {[%emt 0:00:52]} Bd7 {[%emt 0:00:00]} 34. Bc3 g6 {[%emt 0:00:00]} 35. Kg5 {[%emt 0:00:01]} Ba4 {[%emt 0:00:00]} 36. h5 {[%emt 0:00:16]} Bc2 {[%emt 0:00:00]} 37. hxg6+ {[%emt 0:00:30]} hxg6 {[%emt 0:00:00]} 38. g4 {[%emt 0:00:11]} Ke6 {[%emt 0:00:27]} 39. gxf5+ {[%emt 0:00:00] The position is equal.} gxf5 {[%emt 0:00:17]} 40. Kf4 {[%emt 0:00:09]} Kd5 {[%emt 0:03:16]} 41. Bb4 {[%emt 0:00:02]} Kd4 {[%emt 0:00:00]} 42. Bf8 {[%emt 0:00:00]} Kc4 {[%emt 0:00:00]} 43. Be7 {[%emt 0:00:17]} Kb5 {[%emt 0:00:00]} 44. Bf8 {[%emt 0:01:39]} Ka4 {[%emt 0:00:00] Weighted Error Value: White=0.06 (flawless) /Black=0.04 (flawless)} 1/2-1/2

[Event "Charlotte Summer IM D 2022"]
[Site "Charlotte"]
[Date "2022.07.28"]
[Round "8.4"]
[White "Canty, James"]
[Black "Vigorito, David"]
[Result "1/2-1/2"]
[WhiteElo "2175"]
[BlackElo "2295"]
[Annotator "TA"]
[PlyCount "18"]
[EventDate "2022.07.24"]
[EventType "tourn"]
[EventCountry "USA"]
[SourceTitle "playchess.com"]
[Source "ChessBase"]
[SourceQuality "1"]
[TimeControl "5400+30"]

{[%evp 9,18,-35,-19,-28,-29,-31,-23,-21,-23,-39,79]} 1. d4 {[%emt 0:00:09]} d5 {[%emt 0:00:23]} 2. Nc3 {[%emt 0:00:06]} Nf6 {[%emt 0:00:18]} 3. Bf4 {[%emt 0:00:05]} e6 {[%emt 0:00:30]} 4. e3 {[%emt 0:00:05]} Bb4 {[%emt 0:02:36]} 5. Bd3 {[%emt 0:00:22]} c5 {[%emt 0:01:39]} 6. dxc5 {[%emt 0:00:07] D00: 1 d4 d5: Unusual lines.} Nbd7 {[%emt 0:01:04]} 7. Nge2 {[%emt 0:00:18]} a6 {[%emt 0:01:15]} 8. a3 {[%emt 0:04:11]} Bxc5 {[%emt 0:01:07]} 9. Bg3 {[%emt 0:03:47] [#]} e5 $146 {[%emt 1:26:08] A rather calm draw.  Weighted Error Value: White=0.04 (flawless) /Black=0.00 (flawless)} (9... b5 $15 {stays ahead.}) ({Predecessor:} 9... b5 10. O-O Nh5 11. b4 Nxg3 12. hxg3 Be7 13. a4 Qc7 14. axb5 Bxb4 15. Na2 Be7 {0-1 (40) Andersen,J (2303)-Krauss,H (2313) ICCF email 2016}) 1/2-1/2

[Event "Charlotte Summer IM D 2022"]
[Site "Charlotte"]
[Date "2022.07.28"]
[Round "8.5"]
[White "Bisiriyu-Salam, Oluwaseun"]
[Black "Levine, Joseph"]
[Result "0-1"]
[ECO "D73"]
[WhiteElo "1992"]
[BlackElo "2294"]
[Annotator "TA"]
[PlyCount "82"]
[EventDate "2022.07.24"]
[EventType "tourn"]
[EventCountry "USA"]
[SourceTitle "playchess.com"]
[Source "ChessBase"]
[SourceQuality "1"]
[TimeControl "5400+30"]

{[%evp 14,82,19,18,16,7,14,15,26,11,27,-84,-66,-75,-68,-65,-69,-66,-70,-65,-70,-72,-71,-71,-73,-127,-123,-127,-133,-129,-119,-126,-130,-131,-129,-152,-115,-115,-118,-177,-177,-222,-214,-225,-217,-209,-207,-203,-206,-187,-172,-449,-419,-385,-160,-966,-1275,-1403,-974,-5455,-3445,-11210,-5085,-7803,-6107,-1558,-3553,-1115,-825,-6681,-5498]} 1. d4 {[%emt 0:06:44]} d5 {[%emt 0:00:02]} 2. Nf3 {[%emt 0:00:14]} Nf6 {[%emt 0:00:03]} 3. g3 {[%emt 0:00:14]} g6 {[%emt 0:00:25]} 4. Bg2 {[%emt 0:00:16]} Bg7 {[%emt 0:00:04]} 5. c4 {[%emt 0:00:14]} dxc4 {[%emt 0:02:12]} 6. Qa4+ {[%emt 0:00:21]} Nbd7 {[%emt 0:01:21]} 7. O-O {[%emt 0:03:26]} O-O {[%emt 0:01:12]} 8. Qxc4 {[%emt 0:00:12]} Nb6 {[%emt 0:10:00] D73: Fianchetto Grünfeld: 5 Nf3 .} 9. Qb3 {[%emt 0:00:31]} Be6 {[%emt 0:04:06]} 10. Qd1 {[%emt 0:00:08]} Ne4 {[%emt 0:02:23] [#] The position is equal.} 11. Ne5 $146 {[%emt 0:05:02]} (11. Qc2 $5 {[%cal Rc2e4]} f5 12. Rd1 $11) ({Predecessor:} 11. Nbd2 Bd5 12. Qc2 Nxd2 13. Bxd2 Bxf3 14. Bxf3 Qxd4 15. Bc3 Qc4 16. Bxb7 Rab8 17. Be4 Bxc3 18. bxc3 {0-1 (70) Javakhadze,Z (2449)-Swiercz,D (2649) Burlingame 2019}) 11... Bxe5 {[%emt 0:00:49]} 12. Bxe4 {[%emt 0:01:37]} (12. dxe5 $11 Qxd1 13. Rxd1) 12... Bxd4 {[%emt 0:01:54]} 13. Bxb7 {[%emt 0:00:17]} Rb8 {[%emt 0:01:37]} 14. Bg2 {[%emt 0:00:25]} Nc4 {[%emt 1:11:22]} 15. Nc3 {[%emt 0:14:39]} Nxb2 {[%emt 0:00:00] Black is more active.} 16. Qc2 {[%emt 0:00:40] [#]} Na4 $36 {[%emt 0:00:00][%mdl 2048] Black has good play.} 17. Qxa4 {[%emt 0:01:08]} Bxc3 {[%emt 0:00:00]} 18. Bh6 {[%emt 0:00:22] Hoping for Rad1.} Bxa1 {[%emt 0:00:00]} 19. Bxf8 {[%emt 0:00:06]} ({White should try} 19. Rxa1 Qd7 20. Bc6) 19... Qd4 {[%emt 0:00:00]} ({Weaker is} 19... Kxf8 20. Rxa1 Rb2 21. Qxa7) 20. Qxd4 {[%emt 0:04:07]} Bxd4 {[%emt 0:00:00]} 21. Bxe7 {[%emt 0:00:24]} Bxa2 {[%emt 0:00:00]} 22. Rd1 {[%emt 0:01:06]} Rb1 {[%emt 0:00:00]} 23. Rxb1 {[%emt 0:00:20]} Bxb1 $17 {[%emt 0:00:00][%mdl 4096] Endgame KBB-KBB} 24. Bc6 {[%emt 0:00:53]} f5 {[%emt 0:00:00]} 25. Bd5+ {[%emt 0:00:27]} Kg7 {[%emt 0:05:30]} 26. e3 {[%emt 0:00:21] [#]} (26. Bb4 $17) 26... Bc3 $1 $19 {[%emt 0:00:00]} 27. Bc5 {[%emt 0:00:59]} a5 {[%emt 0:00:00][%cal Ba7a5,Ba5a4,Ba4a3,Ba3a2][%mdl 32]} 28. f3 {[%emt 0:00:29]} Kf6 {[%emt 0:00:00]} 29. Kf2 {[%emt 0:01:14]} Bc2 {[%emt 0:00:00]} 30. Ke2 {[%emt 0:00:46]} g5 {[%emt 0:00:00]} 31. h3 {[%emt 0:01:23]} a4 {[%emt 0:00:00]} 32. f4 $2 {[%emt 0:00:42]} (32. Ba3) 32... Bb2 {[%emt 0:00:00]} 33. Kd2 {[%emt 0:02:02] [#]} Bb1 {[%emt 0:00:00]} (33... Bb3 $1 $19 {[%cal Rb3d5]} 34. Bxb3 axb3 35. fxg5+ Kxg5 36. Be7+ Bf6) 34. Bd4+ $2 {[%emt 0:00:32]} (34. Bb4 $17) 34... Bxd4 {[%emt 0:00:00] Black is clearly winning.} 35. exd4 {[%emt 0:00:11] KB-KB} a3 {[%emt 0:00:00] White must now prevent ...gxf4.} 36. Kc3 {[%emt 0:00:12]} gxf4 {[%emt 0:00:00]} (36... a2 37. Kb2 $19) 37. gxf4 {[%emt 0:00:04]} Ke7 {[%emt 0:00:00]} 38. Kb3 {[%emt 0:01:39]} Kd6 {[%emt 0:00:00]} 39. Bg8 {[%emt 0:00:13]} a2 {[%emt 0:00:00]} 40. Kb2 {[%emt 0:00:16]} h6 {[%emt 0:00:00] ( -> ...c5)} 41. h4 {[%emt 0:00:35]} c5 {[%emt 0:00:00] Weighted Error Value: White=0.95/Black=0.27 (precise)} 0-1

[Event "Charlotte Summer IM D 2022"]
[Site "Charlotte"]
[Date "2022.07.28"]
[Round "9.1"]
[White "Levine, Joseph"]
[Black "Bacus, Dharim"]
[Result "1/2-1/2"]
[ECO "C29"]
[WhiteElo "2294"]
[BlackElo "2227"]
[Annotator "TA"]
[PlyCount "64"]
[EventDate "2022.07.24"]
[EventType "tourn"]
[EventCountry "USA"]
[SourceTitle "playchess.com"]
[Source "ChessBase"]
[SourceQuality "1"]
[TimeControl "5400+30"]

{[%evp 11,64,10,27,27,29,31,26,24,42,28,25,5,11,14,29,21,42,25,81,21,28,25,19,-13,-13,-15,0,-23,-17,-22,-17,-28,-32,-29,-35,-31,-30,-30,-8,-78,-78,-86,-90,-94,-102,-123,-92,-146,-138,-187,-74,-95,-95,-90,0]} 1. e4 {[%emt 0:00:01]} e5 {[%emt 0:01:59]} 2. Nc3 {[%emt 0:00:03]} Nf6 {[%emt 1:29:31]} 3. f4 {[%emt 0:00:02]} d5 {[%emt 0:00:30]} 4. fxe5 {[%emt 1:32:24]} Nxe4 {[%emt 0:00:00]} 5. Qf3 {[%emt 0:00:00]} Nxc3 {[%emt 0:00:00]} 6. bxc3 {[%emt 0:00:00]} Qh4+ {[%emt 0:00:00] 6...c5 gains popularity.} 7. g3 {[%emt 0:00:00] C29: Vienna Game: 2...Nf6 3 f4.} Qe4+ {[%emt 0:00:00]} 8. Qxe4 {[%emt 0:00:00]} dxe4 {[%emt 0:00:00]} 9. Bg2 {[%emt 0:00:00] White has an edge.} Nc6 {[%emt 0:00:00]} 10. Bxe4 {[%emt 0:00:00]} Nxe5 {[%emt 0:00:00] [#]} 11. d3 $146 {[%emt 0:00:00]} ({Predecessor:} 11. Rb1 Bd6 12. Nf3 Nxf3+ 13. Bxf3 O-O 14. d3 Rb8 15. Be3 b6 16. Bc6 Bb7 17. Bxb7 Rxb7 {0-1 (69) Romanov,E (2599)-Rakhmanov,A (2651) Cheboksary 2021}) 11... Bd6 {[%emt 0:00:00]} 12. Ne2 {[%emt 0:00:00]} f5 {[%emt 0:00:00]} 13. Bg2 {[%emt 0:00:00]} c6 {[%emt 0:00:00]} 14. Rb1 {[%emt 0:00:00]} O-O {[%emt 0:05:30]} (14... Kd7 $11) 15. Nd4 (15. Bf4 $16) 15... Ng6 $11 {[%emt 0:00:00]} 16. O-O {[%emt 0:00:00]} f4 {[%emt 0:00:00]} 17. gxf4 {[%emt 0:00:00]} (17. Ne2 $5 {[%cal Re2f4]}) 17... Nxf4 {[%emt 0:00:00]} 18. Bxf4 {[%emt 0:00:00]} (18. Be4 {with more complications.} Bh3 19. Rf3 Bg4 20. Bxf4 Bxf4 21. Rff1) 18... Bxf4 {[%emt 0:00:00]} 19. Kh1 {[%cal Od4c6]} Bd6 {[%emt 0:02:30]} 20. Rfe1 {[%emt 0:00:00]} Rb8 {[%emt 0:00:00]} 21. a4 Bd7 {[%emt 0:01:00]} 22. Rb2 {[%emt 0:00:00]} Rbe8 {[%emt 0:00:30]} 23. Rxe8 {[%emt 0:00:00]} Rxe8 {[%emt 0:00:00]} 24. Be4 $1 {[%emt 0:00:00]} Bc8 {[%emt 0:00:00]} 25. Kg2 {[%emt 0:00:00]} (25. Bf5 $11 {keeps the balance.}) 25... g6 {[%emt 0:00:00]} 26. Rb1 {[%emt 0:00:00]} Re5 {[%emt 0:00:00]} 27. Nf3 {[%emt 0:00:00]} Ra5 {[%emt 0:00:00]} 28. Re1 {[%emt 0:00:00][%cal Oe4c6]} Bd7 {[%emt 0:00:00]} ({Stronger than} 28... Rxa4 29. Bxc6 Rg4+ 30. Kf2 $15) 29. Ra1 {[%emt 0:00:00]} ({White should try} 29. Rb1) 29... Kg7 {[%emt 0:00:00]} 30. h4 {[%emt 0:00:00]} (30. c4 $17 {is a better defense.}) 30... Bg4 {[%emt 0:00:00]} (30... b5 $19 {and Black stays clearly on top.} 31. Rb1 Rxa4) 31. Rb1 {[%emt 0:00:00]} Bc8 {[%emt 0:00:00] A strong pair of Bishops.} 32. Ra1 {[%emt 0:00:00]} Bg4 {[%emt 0:00:00] Weighted Error Value: White=0.18 (very precise) /Black=0.13 (very precise)} (32... Rc5 $17 33. c4 Be7) 1/2-1/2

[Event "Charlotte Summer IM D 2022"]
[Site "Charlotte"]
[Date "2022.07.28"]
[Round "9.2"]
[White "Vigorito, David"]
[Black "Bisiriyu-Salam, Oluwaseun"]
[Result "1-0"]
[ECO "E18"]
[WhiteElo "2295"]
[BlackElo "1992"]
[Annotator "TA"]
[PlyCount "67"]
[EventDate "2022.07.24"]
[EventType "tourn"]
[EventCountry "USA"]
[SourceTitle "playchess.com"]
[Source "ChessBase"]
[SourceQuality "1"]
[TimeControl "5400+30"]

{[%evp 16,67,20,-7,75,62,80,67,118,116,110,110,106,122,132,127,129,86,91,63,120,121,157,164,294,290,287,258,265,243,374,367,582,578,744,716,843,867,833,847,771,666,602,465,574,499,1005,974,1237,1221,1242,1211,1081,1023]} 1. Nf3 {[%emt 1:31:00]} d5 {[%emt 0:13:46]} 2. d4 {[%emt 0:00:00]} Nf6 {[%emt 1:17:44]} 3. c4 {[%emt 0:00:00]} e6 {[%emt 0:00:00]} 4. g3 {[%emt 0:00:00]} Be7 {[%emt 0:00:00]} 5. Bg2 {[%emt 0:00:00]} O-O {[%emt 0:00:00]} 6. O-O {[%emt 0:00:00]} b6 {[%emt 0:00:00]} 7. Nc3 {[%emt 0:00:00]} Bb7 {[%emt 0:00:00]} 8. Ne5 {[%emt 0:00:00] 8.cxd5 deserves study.} Nbd7 {[%emt 0:03:00]} 9. Qa4 {[%emt 0:04:00]} Nb8 {[%emt 0:00:00] Prevents Nc6. E18: Queen's Indian: Old Main Line (4 g3 Bb7 5 Bg2 Be7 6 0-0 0-0 7 Nc3).} (9... c6 $1 $11 {keeps the balance.}) 10. Rd1 $16 {[%emt 0:00:00]} a6 {[%emt 0:00:00]} 11. cxd5 {[%emt 0:00:00]} exd5 {[%emt 0:00:00]} (11... Nxd5 $14 12. Nxd5 exd5) 12. Bf4 {[%emt 0:00:00][%cal Bc1f4,Bf4d2,Bd2a5][%mdl 32]} b5 {[%emt 0:00:00]} 13. Qb3 {[%emt 0:00:00] [#]} c6 $146 {[%emt 0:00:00]} ({Predecessor:} 13... Ne4 14. Rac1 Nxc3 15. Rxc3 c6 16. e4 dxe4 17. Bxe4 Bd6 18. Be3 Qe7 19. Qc2 h6 20. Nxc6 Bxc6 21. Bxc6 Nxc6 22. Rxc6 {1-0 (38) Vodyasov,E (2223)-Tsapalin,S (1958) Velke Losiny 2013}) 14. e4 {[%emt 0:00:00] White is much more active.} dxe4 {[%emt 0:00:00]} 15. Nxe4 {[%emt 0:00:00]} ({But not} 15. Bxe4 Nxe4 16. Nxe4 Qd5 $14) 15... Nd5 {[%emt 0:03:30]} 16. Bd2 {[%emt 0:00:00]} Nd7 {[%emt 0:00:00]} 17. Ba5 {[%emt 0:00:00]} Qe8 {[%emt 0:00:00]} ({Black should play} 17... Qxa5 $14 18. Nxd7 Rfd8) 18. Nd3 {[%emt 0:00:00]} f5 {[%emt 0:00:00] [#]} 19. Nc3 {[%emt 0:00:00]} N7f6 {[%emt 0:00:00]} (19... Qf7 $142 20. Nxd5 cxd5) 20. Re1 $18 {[%emt 0:00:00]} Qd7 {[%emt 0:00:00]} 21. Ne5 {[%emt 0:00:00]} Qd6 {[%emt 0:00:00]} 22. Rac1 {[%emt 0:00:00][%cal Ba1c1,Bc1c7,Bc7d7][%mdl 32] Hoping for a3.} Kh8 {[%emt 0:03:30]} (22... Rae8 $142 23. Na4 Bd8) 23. Nxd5 {[%emt 0:00:00]} Nxd5 {[%emt 0:00:30]} (23... cxd5 $142 24. a3 (24. Rc7 Bd8 $18) 24... Qb8) 24. Bxd5 {[%emt 0:00:00] White is clearly winning.} cxd5 {[%emt 0:00:00]} 25. Rc7 {[%emt 0:00:00]} Bd8 {[%emt 0:00:00]} 26. Rd7 {[%emt 0:00:00]} Qxd7 {[%emt 0:00:00]} 27. Nxd7 {[%emt 0:00:00]} Bxa5 {[%emt 0:00:00]} 28. Nxf8 {[%emt 0:00:00]} Bxe1 {[%emt 0:00:00]} 29. Qe3 {[%emt 0:00:00]} Bb4 {[%emt 0:00:00]} 30. Nd7 {[%emt 0:00:00]} Rd8 {[%emt 0:00:00]} (30... Bc6 $142 31. Qe6 Bxd7 32. Qxd7 f4) 31. a3 {[%emt 0:00:00]} Ba5 {[%emt 0:00:00]} 32. b4 {[%emt 0:00:00]} Bc7 {[%emt 0:00:00]} 33. Qe7 {[%emt 0:00:00] [#] Ne5 is the strong threat.} Rc8 {[%emt 0:00:00]} 34. Nc5 {[%emt 0:00:00] Weighted Error Value: White=0.24 (precise) /Black=0.54} 1-0

[Event "Charlotte Summer IM D 2022"]
[Site "Charlotte"]
[Date "2022.07.28"]
[Round "9.3"]
[White "Oberoi, Shelev"]
[Black "Canty, James"]
[Result "0-1"]
[ECO "C10"]
[WhiteElo "2259"]
[BlackElo "2175"]
[Annotator "TA"]
[PlyCount "66"]
[EventDate "2022.07.24"]
[EventType "tourn"]
[EventCountry "USA"]
[SourceTitle "playchess.com"]
[Source "ChessBase"]
[SourceQuality "1"]
[TimeControl "5400+30"]

{[%evp 9,66,0,9,0,0,-45,12,10,108,91,107,83,94,18,6,0,10,0,4,6,0,12,9,-69,-38,-45,-39,-81,-81,-116,-124,-179,-179,-190,-175,-226,-143,-120,-135,-114,-115,-185,-185,-195,-201,-307,-157,-193,-197,-308,-299,-297,-287,-541,-509,-624,-620,-968,-919]} 1. e4 {[%emt 0:00:02][%cal Be2e4,Be4e5][%mdl 32]} e6 {[%emt 0:04:48]} 2. d4 {[%emt 0:00:10]} d5 {[%emt 0:00:04]} 3. Nc3 {[%emt 0:00:11]} Be7 {[%emt 0:00:03]} 4. Bf4 {[%emt 0:00:15]} Nf6 {[%emt 0:00:53]} 5. e5 {[%emt 0:01:22]} Nfd7 {[%emt 0:00:06] [#]} 6. h4 $146 {[%emt 0:06:51] C10: French with 3 Nc3: Unusual Black 3rd moves and 3...dxe4.} ({Predecessor:} 6. Qg4 Kf8 7. h4 h5 8. Qg3 a6 9. Nf3 c5 10. Be2 Nc6 11. dxc5 Nxc5 12. O-O {1-0 (63) Osmonbekov,T (2136)-Hartikainen,J (2133) Chess.com INT 2021}) 6... c5 {[%emt 0:01:12]} 7. dxc5 {[%emt 0:09:14]} (7. Qg4 $5 {[%cal Rg4g7]} Kf8 8. Be3 $11) 7... Nc6 {[%emt 1:26:54]} (7... O-O $1 $15) 8. Qg4 $11 {[%emt 0:02:13] The position is equal.} Ndxe5 {[%emt 0:00:30]} (8... g6 $11) 9. Qxg7 $16 Bf6 {[%cal Be7f6,Bf6g7,Bg7f8,Bf8c5][%mdl 32]} 10. Qg3 {[%emt 0:08:32]} Qa5 {[#]} 11. Bb5 {[%emt 0:16:25]} (11. O-O-O $1 $16) 11... Bd7 $132 {[%emt 0:00:00][%mdl 2048] Hoping for ...d4. Black is not keeping still} 12. O-O-O {[%emt 0:10:30]} O-O-O $1 {[%emt 0:00:00]} 13. Bg5 {[%emt 0:04:39]} Rdg8 $1 {[%emt 0:00:00]} 14. Qf4 {[%emt 0:06:11]} Bg7 {[%emt 0:00:00]} 15. Qa4 {[%emt 0:00:57]} Qxa4 {[%emt 0:00:00]} 16. Bxa4 {[%emt 0:00:58]} (16. Nxa4 $11 h6 17. Bd2 (17. Bf4 Ng4 $11)) 16... h6 {[%emt 0:04:00]} (16... f6 $5 {[%cal Rf6g5]} 17. Bf4 Bf8 $15) 17. Bf4 {[%emt 0:05:30]} Bf8 {[%emt 0:00:00][%csl LRc5,LRg2]} 18. b4 {[%emt 0:04:35]} Nc4 {[%emt 0:00:00]} ({Don't take} 18... Rxg2 19. b5 $11) 19. Bxc6 {[%emt 0:07:59]} Bxc6 {[%emt 0:00:00]} 20. Nge2 {[%emt 0:06:03] [#]} (20. Nf3 $17 {is a better defense.}) 20... a5 $1 $19 {[%emt 0:00:00]} ({Inferior is} 20... Rxg2 21. Bg3 $17) 21. b5 {[%emt 0:02:04]} Bd7 {[%emt 0:00:00]} 22. Rd4 {[%emt 0:03:47]} (22. Bg3 $142) 22... Bxc5 {[%emt 0:00:00]} 23. Rxc4 {[%emt 0:00:12]} dxc4 {[%emt 0:00:00]} 24. Be5 {[%emt 0:00:47]} Rh7 {[%emt 0:00:00]} ({Reject} 24... Bxf2 $6 25. Ne4 f6 26. Bxf6 Be3+ 27. Kb2 $15) 25. Ne4 {[%emt 0:00:18]} (25. g3 $17 {was necessary.}) 25... Ba3+ {[%emt 0:00:00]} 26. Kd2 {[%emt 0:00:40]} Bxb5 {[%emt 0:00:00]} 27. Ke3 {[%emt 0:00:35]} (27. Nd4 {keeps fighting.} Rd8 28. Bf6) 27... Rd8 {[%emt 0:00:00]} (27... Rxg2 $19 {...Bc6 is the strong threat.} 28. Nd4 Ba4) 28. Nd4 {[%emt 0:00:30]} Ba4 {[%emt 0:00:00] White must now prevent ...f5.} 29. Rb1 {[%emt 0:00:30]} (29. Bf6 $142) 29... f5 {[%emt 0:00:00]} 30. Nc3 {[%emt 0:00:30]} Be8 {[%emt 0:00:00]} 31. Kf3 $2 {[%emt 0:02:47]} (31. Kf4 {was worth a try.}) 31... Bb4 {[%emt 0:00:00] Black is clearly winning.} 32. Nce2 {[%emt 0:00:20]} Rd5 {[%emt 0:00:00]} 33. Kf4 {[%emt 0:00:32]} Bd2+ {[%emt 0:00:00] Weighted Error Value: White=0.47/Black=0.18 (very precise)} 0-1

[Event "Charlotte Summer IM D 2022"]
[Site "Charlotte"]
[Date "2022.07.28"]
[Round "9.4"]
[White "Leyva Rivera, Yunier"]
[Black "Martin Del Campo Cardenas, Roberto Abel"]
[Result "1/2-1/2"]
[WhiteElo "2379"]
[BlackElo "2245"]
[Annotator "TA"]
[PlyCount "37"]
[EventDate "2022.07.24"]
[EventType "tourn"]
[EventCountry "USA"]
[SourceTitle "playchess.com"]
[Source "ChessBase"]
[SourceQuality "1"]
[TimeControl "5400+30"]

{[%evp 17,19,8,8,4]} 1. b3 {[%emt 0:01:13]} d5 {[%emt 0:00:06]} 2. Bb2 {[%emt 0:00:03]} c5 {[%emt 0:00:06]} 3. e3 {[%emt 0:00:01]} Nc6 {[%emt 0:00:06]} 4. Nf3 {[%emt 0:00:05]} Nf6 {[%emt 1:32:12]} 5. Bb5 {[%emt 0:00:04]} Bd7 {[%emt 0:00:00]} 6. O-O {[%emt 0:00:04]} e6 {[%emt 0:00:00]} 7. Bxc6 {[%emt 0:00:04]} Bxc6 {[%emt 0:00:00]} 8. Ne5 {[%emt 0:00:05]} Rc8 {[%emt 0:00:00]} 9. f4 {[%emt 0:00:03]} Be7 {[%emt 0:00:00]} 10. d3 {[%emt 0:00:03] [#] Not much happened in this game. A03: Bird's Opening with 1...d5.} {Predecessor:} O-O $146 11. Nd2 Be8 12. Ndf3 Nd7 13. Nxd7 Bxd7 14. c4 b5 15. Ne5 Be8 16. Qe2 f6 17. Nf3 bxc4 18. bxc4 Qb6 19. Bc3 {1-0 (76) Dragomirescu,R (2337)-Postny,E (2600) Chess.com INT 2020} 1/2-1/2